[Event "2nd Serbian League-Vojvodina 2023"]
[Site "Novi Sad"]
[Date "2023.11.04"]
[Round "3.11"]
[White "Radlovacki, Jovan"]
[Black "Juhasz, Bence R"]
[Result "0-1"]
[ECO "B53"]
[WhiteElo "2268"]
[BlackElo "2210"]
[Annotator "RC"]
[PlyCount "72"]
[EventDate "2023.10.22"]
[EventType "team-tourn"]
[EventCountry "SRB"]
[SourceTitle "playchess.com"]
[Source "ChessBase"]
[SourceQuality "1"]
[TimeControl "40/5400+30:1800+30"]

1. e4 {[%emt 0:00:30]} c5 {[%emt 0:00:07]} 2. Nf3 {[%emt 0:00:05]} d6 {[%emt 0:00:10]} 3. d4 {[%emt 0:00:09]} cxd4 {[%emt 0:00:05]} 4. Qxd4 {[%emt 0:00:03]} Nc6 {[%emt 0:01:19]} 5. Qe3 {[%emt 0:02:54]} Nf6 {[%emt 0:01:18]} 6. Nc3 {[%emt 0:00:27]} e6 {[%emt 0:01:31]} 7. Bb5 {[%emt 0:03:38]} a6 {[%emt 0:03:16]} 8. Bxc6+ {[%emt 0:02:39]} bxc6 {[%emt 0:00:02]} 9. O-O {[%emt 0:02:35]} Be7 {[%emt 0:02:06]} 10. Na4 {[%emt 0:03:07]} Rb8 {[%emt 0:08:16]} 11. c4 {[%emt 0:01:09]} O-O {[%emt 0:03:02]} 12. Rd1 {[%emt 0:08:31]} d5 {[%emt 0:10:41]} 13. e5 {[%emt 0:03:27]} Nd7 {[%emt 0:03:02]} 14. cxd5 {[%emt 0:02:59]} cxd5 {[%emt 0:01:21]} 15. b3 {[%emt 0:05:19]} Bb7 {[%emt 0:05:10]} 16. Bb2 {[%emt 0:00:16]} Bc6 {[%emt 0:01:25]} 17. Rd4 {[%emt 0:08:26]} Qc7 {[%emt 0:06:06]} 18. Rc1 {[%emt 0:02:30]} Rfc8 {[%emt 0:00:55]} 19. Qe1 {[%emt 0:11:18]} Qb7 {[%emt 0:06:17]} 20. Nc3 {[%emt 0:14:40]} Nc5 {[%emt 0:05:16]} 21. Qe3 {[%emt 0:13:38]} Nd7 {[%emt 0:15:12]} 22. Rg4 {[%emt 0:03:18]} Nf8 {[%emt 0:00:46]} 23. Ne2 {[%emt 0:01:38]} Be8 {[%emt 0:01:43]} 24. Rxc8 {[%emt 0:03:08]} Rxc8 {[%emt 0:00:16]} 25. Qd2 {[%emt 0:00:24]} Qc7 {[%emt 0:02:26]} 26. Ned4 {[%emt 0:00:48]} Ng6 {[%emt 0:01:20]} 27. h4 {[%emt 0:02:15]} h5 {[%emt 0:02:21]} 28. Rg5 {[%emt 0:00:50]} Bxg5 {[%emt 0:00:32]} 29. Qxg5 {[%emt 0:00:02]} Qe7 {[%emt 0:05:11]} 30. Qxh5 {[%emt 0:00:05]} Nf4 {[%emt 0:00:54]} 31. Qg4 {[%emt 0:01:55]} Nd3 {[%emt 0:06:37]} 32. Ng5 {[%emt 0:00:07]} g6 {[%emt 0:01:00]} 33. h5 {[%emt 0:03:34]} Nxb2 {[%emt 0:00:40]} 34. hxg6 {[%emt 0:00:16]} fxg6 {[%emt 0:00:13]} 35. Ndxe6 {[%emt 0:00:45]} Nd3 {[%emt 0:01:01]} 36. Qd4 {[%emt 0:00:18]} Nc5 {[%emt 0:01:48]} 0-1

[Event "2nd Serbian League-Vojvodina 2023"]
[Site "Novi Sad"]
[Date "2023.11.04"]
[Round "3.13"]
[White "Georgiev, Krum"]
[Black "Agdelen, Huseyin Can"]
[Result "0-1"]
[ECO "B31"]
[WhiteElo "2294"]
[BlackElo "2401"]
[Annotator "RC"]
[PlyCount "64"]
[EventDate "2023.10.22"]
[EventType "team-tourn"]
[EventCountry "SRB"]
[SourceTitle "playchess.com"]
[Source "ChessBase"]
[SourceQuality "1"]
[TimeControl "40/5400+30:1800+30"]

1. e4 {[%emt 1:31:00]} c5 {[%emt 1:31:00]} 2. Nf3 {[%emt 0:00:30]} Nc6 {[%emt 0:00:30]} 3. Bb5 {[%emt 0:00:30]} g6 {[%emt 0:00:30]} 4. c3 {[%emt 0:00:30]} Nf6 {[%emt 0:00:30]} 5. e5 {[%emt 0:00:30]} Nd5 {[%emt 0:00:30]} 6. d4 {[%emt 0:00:30]} cxd4 {[%emt 0:00:30]} 7. Qb3 {[%emt 0:00:30]} Nc7 {[%emt 0:00:30]} 8. Bc4 {[%emt 0:00:30]} Ne6 {[%emt 0:00:30]} 9. cxd4 {[%emt 0:00:30]} Na5 {[%emt 0:00:30]} 10. Qc3 {[%emt 0:00:30]} Nxc4 {[%emt 0:00:30]} 11. Qxc4 {[%emt 0:00:30]} b5 {[%emt 0:00:30]} 12. Qb3 {[%emt 0:00:30]} Bb7 {[%emt 0:00:30]} 13. Be3 {[%emt 0:00:30]} a5 {[%emt 0:00:30]} 14. Nc3 {[%emt 0:00:30]} b4 {[%emt 0:00:30]} 15. d5 {[%emt 0:00:30]} Nc7 {[%emt 0:00:30]} 16. Rd1 {[%emt 0:00:30]} bxc3 {[%emt 0:00:30]} 17. Qxb7 {[%emt 0:00:30]} Rb8 {[%emt 0:00:30]} 18. Qa7 {[%emt 0:00:30]} cxb2 {[%emt 0:00:30]} 19. O-O {[%emt 0:00:30]} Nxd5 {[%emt 0:00:30]} 20. Bd4 {[%emt 0:00:30]} e6 {[%emt 0:00:30]} 21. Nd2 {[%emt 0:00:30]} Qc8 {[%emt 0:00:30]} 22. Nc4 {[%emt 0:00:30]} Ra8 {[%emt 0:00:30]} 23. Nb6 {[%emt 0:00:30]} Rxa7 {[%emt 0:00:30]} 24. Nxc8 {[%emt 0:00:30]} Rb7 {[%emt 0:00:30]} 25. Rb1 {[%emt 0:00:30]} Ba3 {[%emt 0:00:30]} 26. Nd6+ {[%emt 0:00:30]} Bxd6 {[%emt 0:00:30]} 27. exd6 {[%emt 0:00:30]} O-O {[%emt 0:00:30]} 28. Rxb2 {[%emt 0:00:30]} Rxb2 {[%emt 0:00:30]} 29. Bxb2 {[%emt 0:00:30]} Rb8 {[%emt 0:00:30]} 30. Bd4 {[%emt 0:00:30]} f6 {[%emt 0:00:30]} 31. Rc1 {[%emt 0:00:30]} e5 {[%emt 0:00:30]} 32. Ba7 {[%emt 0:00:30]} Ra8 {[%emt 0:00:30]} 0-1

[Event "2nd Serbian League-Vojvodina 2023"]
[Site "Novi Sad"]
[Date "2023.11.04"]
[Round "3.14"]
[White "Lalic, Bogdan"]
[Black "Indjic, Dusan"]
[Result "1/2-1/2"]
[ECO "D37"]
[WhiteElo "2345"]
[BlackElo "2304"]
[Annotator "RC"]
[PlyCount "31"]
[EventDate "2023.10.22"]
[EventType "team-tourn"]
[EventCountry "SRB"]
[SourceTitle "playchess.com"]
[Source "ChessBase"]
[SourceQuality "1"]
[TimeControl "40/5400+30:1800+30"]

1. Nf3 {[%emt 0:00:00]} d5 2. d4 {[%emt 1:31:30]} Nf6 {[%emt 1:31:30]} 3. c4 {[%emt 0:00:30]} e6 {[%emt 0:00:30]} 4. Nc3 {[%emt 0:00:30]} Be7 {[%emt 0:00:30]} 5. Bf4 {[%emt 0:00:30]} O-O {[%emt 0:00:30]} 6. e3 {[%emt 0:00:30]} b6 {[%emt 0:00:30]} 7. cxd5 {[%emt 0:00:30]} Nxd5 {[%emt 0:00:30]} 8. Nxd5 {[%emt 0:00:30]} exd5 {[%emt 0:00:30]} 9. Bd3 {[%emt 0:00:30]} c5 {[%emt 0:00:30]} 10. dxc5 {[%emt 0:00:30]} bxc5 {[%emt 0:00:30]} 11. O-O {[%emt 0:00:30]} Nc6 {[%emt 0:00:30]} 12. Ne5 {[%emt 0:00:30]} Nxe5 {[%emt 0:00:30]} 13. Bxe5 {[%emt 0:00:30]} Be6 {[%emt 0:00:00]} 14. Rc1 c4 {[%emt 0:01:00]} 15. Be2 {[%emt 0:01:00]} Bf6 {[%emt 0:00:30]} 16. Ra1 {[%emt 0:00:30]} 1/2-1/2

[Event "2nd Serbian League-Vojvodina 2023"]
[Site "Novi Sad"]
[Date "2023.11.04"]
[Round "3.15"]
[White "Mijatovic, Dusan"]
[Black "Grujic, Zoran"]
[Result "0-1"]
[ECO "B96"]
[WhiteElo "2139"]
[BlackElo "2315"]
[Annotator "RC"]
[PlyCount "47"]
[EventDate "2023.10.22"]
[EventType "team-tourn"]
[EventCountry "SRB"]
[SourceTitle "playchess.com"]
[Source "ChessBase"]
[SourceQuality "1"]
[TimeControl "40/5400+30:1800+30"]

1. e4 {[%emt 0:00:02]} c5 {[%emt 0:00:06]} 2. Nf3 {[%emt 0:00:08]} d6 {[%emt 0:00:03]} 3. d4 {[%emt 0:00:09]} cxd4 {[%emt 0:00:05]} 4. Nxd4 {[%emt 0:00:10]} Nf6 {[%emt 0:00:03]} 5. Nc3 {[%emt 0:00:10]} a6 {[%emt 0:00:04]} 6. Bg5 {[%emt 0:00:53]} e6 {[%emt 0:00:18]} 7. f4 {[%emt 0:00:06]} h6 {[%emt 0:01:02]} 8. Bh4 {[%emt 0:00:07]} Qb6 {[%emt 0:00:49]} 9. Qd2 {[%emt 0:03:17]} Be7 {[%emt 0:02:22]} 10. e5 {[%emt 0:10:18]} dxe5 {[%emt 0:01:15]} 11. fxe5 {[%emt 0:00:14]} Ne4 {[%emt 0:00:36]} 12. Nxe4 {[%emt 0:04:10]} Bxh4+ {[%emt 0:00:07]} 13. g3 {[%emt 0:00:13]} Be7 {[%emt 0:00:08]} 14. O-O-O {[%emt 0:01:23]} Nd7 {[%emt 0:04:36]} 15. Qf4 {[%emt 0:14:49]} O-O {[%emt 0:01:58]} 16. Bd3 {[%emt 0:06:57]} Qa5 {[%emt 0:03:05]} 17. Nf3 {[%emt 0:11:28]} Qxa2 {[%emt 0:07:37]} 18. h4 {[%emt 0:08:23]} Qa1+ {[%emt 0:05:12]} 19. Kd2 {[%emt 0:00:01]} Qxb2 {[%emt 0:00:35]} 20. Rb1 {[%emt 0:00:59]} Qa3 {[%emt 0:00:57]} 21. Neg5 {[%emt 0:11:34]} Nc5 {[%emt 0:02:55]} 22. Bh7+ {[%emt 0:12:22]} Kh8 {[%emt 0:00:05]} 23. Ra1 {[%emt 0:01:39]} Nb3+ {[%emt 0:38:52]} 24. cxb3 {[%emt 0:00:23]} 0-1

[Event "2nd Serbian League-Vojvodina 2023"]
[Site "Novi Sad"]
[Date "2023.11.04"]
[Round "3.16"]
[White "Dragojlovic, Andjelko"]
[Black "Mijatovic, Dejan"]
[Result "1-0"]
[ECO "C44"]
[WhiteElo "2108"]
[BlackElo "2185"]
[Annotator "RC"]
[PlyCount "99"]
[EventDate "2023.10.22"]
[EventType "team-tourn"]
[EventCountry "SRB"]
[SourceTitle "playchess.com"]
[Source "ChessBase"]
[SourceQuality "1"]
[TimeControl "40/5400+30:1800+30"]

1. e4 {[%emt 1:31:00]} e5 {[%emt 1:31:00]} 2. Nf3 {[%emt 0:00:30]} Nf6 {[%emt 0:00:30]} 3. d3 {[%emt 0:00:30]} Nc6 {[%emt 0:00:30]} 4. c3 {[%emt 0:00:30]} d5 {[%emt 0:00:30]} 5. Nbd2 {[%emt 0:00:00]} Be7 6. Be2 {[%emt 0:01:00]} O-O {[%emt 0:01:00]} 7. O-O {[%emt 0:00:30]} Be6 {[%emt 0:00:30]} 8. a3 {[%emt 0:00:30]} a5 {[%emt 0:00:30]} 9. b3 {[%emt 0:00:30]} dxe4 {[%emt 0:00:30]} 10. dxe4 {[%emt 0:00:30]} Nd7 {[%emt 0:00:30]} 11. Bb2 {[%emt 0:00:30]} f6 {[%emt 0:00:30]} 12. b4 {[%emt 0:00:30]} Qe8 {[%emt 0:00:30]} 13. Nc4 {[%emt 0:00:30]} b5 {[%emt 0:00:30]} 14. Ne3 {[%emt 0:00:30]} Na7 {[%emt 0:00:30]} 15. Nd5 {[%emt 0:00:30]} Bd8 {[%emt 0:00:00]} 16. a4 bxa4 {[%emt 0:01:00]} 17. Rxa4 {[%emt 0:01:00]} c6 {[%emt 0:00:30]} 18. Ne3 {[%emt 0:00:30]} Qf7 {[%emt 0:00:30]} 19. Qa1 {[%emt 0:00:30]} Kh8 {[%emt 0:00:00]} 20. Nd2 Bb6 {[%emt 0:01:00]} 21. Ndc4 {[%emt 0:01:00]} axb4 {[%emt 0:00:30]} 22. cxb4 {[%emt 0:00:30]} Bxe3 {[%emt 0:00:00]} 23. Nxe3 {[%emt 0:00:30]} Nb6 {[%emt 0:01:00]} 24. Ra5 {[%emt 0:00:30]} Rfb8 {[%emt 0:00:30]} 25. Rc1 {[%emt 0:00:30]} Qb7 {[%emt 0:00:30]} 26. h4 {[%emt 0:00:30]} Nb5 {[%emt 0:00:30]} 27. h5 {[%emt 0:00:30]} h6 {[%emt 0:00:30]} 28. Bc3 {[%emt 0:00:30]} Rd8 {[%emt 0:00:30]} 29. Rd1 {[%emt 0:00:30]} Rxd1+ {[%emt 0:00:00]} 30. Nxd1 Rd8 {[%emt 0:01:00]} 31. Ne3 {[%emt 0:01:00]} Nd4 {[%emt 0:00:30]} 32. Bd1 {[%emt 0:00:00]} Kh7 {[%emt 0:00:00]} 33. Ra7 Qb8 {[%emt 0:01:00]} 34. Ra5 {[%emt 0:01:30]} Nb5 {[%emt 0:00:30]} 35. Be2 {[%emt 0:00:30]} Nd4 {[%emt 0:00:30]} 36. Qb2 {[%emt 0:00:30]} Qd6 {[%emt 0:00:00]} 37. Ra6 Rb8 {[%emt 0:00:00]} 38. Bf1 {[%emt 0:00:00]} Qd7 39. Qa1 {[%emt 0:00:00]} Nb5 {[%emt 0:00:00]} 40. Qb2 {[%emt 0:00:00]} Nd4 41. Qa1 Nb5 {[%emt 0:33:00]} 42. Qc1 {[%emt 0:33:00]} Qb7 {[%emt 0:00:30]} 43. Ra5 {[%emt 0:00:30]} Nxc3 44. Qxc3 {[%emt 0:00:30]} Nd7 {[%emt 0:01:00]} 45. Ra4 {[%emt 0:00:30]} Nb6 {[%emt 0:00:30]} 46. Ra6 {[%emt 0:00:30]} Ra8 {[%emt 0:00:30]} 47. Ra5 {[%emt 0:00:30]} Bf7 {[%emt 0:00:00]} 48. Be2 Rb8 {[%emt 0:01:00]} 49. Bg4 {[%emt 0:01:00]} Nc8 {[%emt 0:00:30]} 50. Qc5 1-0

[Event "2nd Serbian League-Vojvodina 2023"]
[Site "Novi Sad"]
[Date "2023.11.04"]
[Round "3.17"]
[White "Rosic, Slavko S"]
[Black "Ilincic, Aleksa"]
[Result "1-0"]
[ECO "B19"]
[WhiteElo "2212"]
[BlackElo "2235"]
[Annotator "RC"]
[PlyCount "74"]
[EventDate "2023.10.22"]
[EventType "team-tourn"]
[EventCountry "SRB"]
[SourceTitle "playchess.com"]
[Source "ChessBase"]
[SourceQuality "1"]
[TimeControl "40/5400+30:1800+30"]

1. e4 {[%emt 1:31:00]} c6 {[%emt 1:31:00]} 2. d4 {[%emt 0:00:30]} d5 {[%emt 0:00:30]} 3. Nc3 {[%emt 0:00:30]} dxe4 {[%emt 0:00:30]} 4. Nxe4 {[%emt 0:00:30]} Bf5 {[%emt 0:00:30]} 5. Ng3 {[%emt 0:00:30]} Bg6 {[%emt 0:00:30]} 6. h4 {[%emt 0:00:30]} h6 {[%emt 0:00:30]} 7. h5 {[%emt 0:00:30]} Bh7 {[%emt 0:00:30]} 8. Nf3 {[%emt 0:00:30]} Nd7 {[%emt 0:00:30]} 9. Bd3 {[%emt 0:00:30]} Bxd3 {[%emt 0:00:30]} 10. Qxd3 {[%emt 0:00:30]} e6 {[%emt 0:00:30]} 11. Bf4 {[%emt 0:00:30]} Qa5+ {[%emt 0:00:30]} 12. c3 {[%emt 0:00:30]} Ngf6 {[%emt 0:00:30]} 13. a4 {[%emt 0:00:30]} Be7 {[%emt 0:00:30]} 14. b4 {[%emt 0:00:30]} Qd8 {[%emt 0:00:30]} 15. Ne4 {[%emt 0:00:30]} Nxe4 {[%emt 0:00:30]} 16. Qxe4 {[%emt 0:00:30]} Nf6 {[%emt 0:00:30]} 17. Qd3 {[%emt 0:00:30]} Qd5 {[%emt 0:00:30]} 18. Be5 {[%emt 0:00:30]} O-O {[%emt 0:00:30]} 19. Kf1 {[%emt 0:00:30]} a5 {[%emt 0:00:30]} 20. c4 {[%emt 0:00:30]} Qd8 {[%emt 0:00:30]} 21. b5 {[%emt 0:00:30]} cxb5 {[%emt 0:00:30]} 22. axb5 {[%emt 0:00:30]} a4 {[%emt 0:00:30]} 23. Rh3 {[%emt 0:00:30]} Qa5 {[%emt 0:00:30]} 24. Nd2 {[%emt 0:00:30]} Rfd8 {[%emt 0:00:30]} 25. Qe2 {[%emt 0:00:30]} Nd7 {[%emt 0:00:30]} 26. Rg3 {[%emt 0:00:30]} Bf6 {[%emt 0:00:30]} 27. Ne4 {[%emt 0:00:30]} Bxe5 {[%emt 0:00:30]} 28. dxe5 {[%emt 0:00:30]} Qc7 {[%emt 0:00:30]} 29. Nd6 {[%emt 0:00:30]} Nf8 {[%emt 0:00:30]} 30. Qg4 {[%emt 0:00:30]} f5 {[%emt 0:00:30]} 31. Qd4 {[%emt 0:00:30]} Nd7 {[%emt 0:00:30]} 32. f4 {[%emt 0:00:30]} Nc5 {[%emt 0:00:30]} 33. Qc3 {[%emt 0:00:30]} Rd7 {[%emt 0:00:30]} 34. Kg1 {[%emt 0:00:30]} Nb3 {[%emt 0:00:30]} 35. Rf1 {[%emt 0:00:30]} Qc5+ {[%emt 0:00:30]} 36. Kh2 {[%emt 0:00:30]} b6 {[%emt 0:00:30]} 37. Qf3 {[%emt 0:00:30]} Raa7 {[%emt 0:00:30]} 1-0

[Event "2nd Serbian League-Vojvodina 2023"]
[Site "Novi Sad"]
[Date "2023.11.04"]
[Round "3.18"]
[White "Stikovic, Dobrica"]
[Black "Bojkovic, Slobodan"]
[Result "0-1"]
[ECO "A34"]
[WhiteElo "2162"]
[BlackElo "2031"]
[Annotator "RC"]
[PlyCount "58"]
[EventDate "2023.10.22"]
[EventType "team-tourn"]
[EventCountry "SRB"]
[SourceTitle "playchess.com"]
[Source "ChessBase"]
[SourceQuality "1"]
[TimeControl "40/5400+30:1800+30"]

1. c4 {[%emt 1:31:00]} c5 {[%emt 1:31:00]} 2. Nc3 {[%emt 0:00:30]} Nf6 {[%emt 0:00:30]} 3. Nf3 {[%emt 0:00:30]} Nc6 {[%emt 0:00:30]} 4. g3 {[%emt 0:00:30]} d5 {[%emt 0:00:30]} 5. cxd5 {[%emt 0:00:30]} Nxd5 {[%emt 0:00:30]} 6. Bg2 {[%emt 0:00:30]} Nc7 {[%emt 0:00:30]} 7. d3 {[%emt 0:00:30]} e5 {[%emt 0:00:30]} 8. O-O {[%emt 0:00:30]} Be7 {[%emt 0:00:30]} 9. Be3 {[%emt 0:00:30]} O-O {[%emt 0:00:30]} 10. Nd2 {[%emt 0:00:30]} Nd4 {[%emt 0:00:30]} 11. Nc4 {[%emt 0:00:30]} f6 {[%emt 0:00:30]} 12. Rc1 {[%emt 0:00:30]} Rb8 {[%emt 0:00:30]} 13. f4 {[%emt 0:00:30]} exf4 {[%emt 0:00:30]} 14. Bxf4 {[%emt 0:00:30]} Nde6 {[%emt 0:00:30]} 15. Be3 {[%emt 0:00:30]} b6 {[%emt 0:00:30]} 16. Qb3 {[%emt 0:00:30]} Kh8 {[%emt 0:00:30]} 17. a4 {[%emt 0:00:30]} Bd7 {[%emt 0:00:30]} 18. Na3 {[%emt 0:00:30]} Be8 {[%emt 0:00:30]} 19. Nab5 {[%emt 0:00:30]} a6 {[%emt 0:00:30]} 20. Nxc7 {[%emt 0:00:30]} Nxc7 {[%emt 0:00:30]} 21. Bf4 {[%emt 0:00:30]} Bd6 {[%emt 0:00:30]} 22. Kh1 {[%emt 0:00:30]} Bf7 {[%emt 0:00:30]} 23. Qa3 {[%emt 0:00:30]} a5 {[%emt 0:00:30]} 24. Bxd6 {[%emt 0:00:30]} Qxd6 {[%emt 0:00:30]} 25. Ne4 {[%emt 0:00:30]} Qd7 {[%emt 0:00:30]} 26. Nd2 {[%emt 0:00:30]} Nd5 {[%emt 0:00:30]} 27. Bxd5 {[%emt 0:00:30]} Bxd5+ {[%emt 0:00:30]} 28. Nf3 {[%emt 0:00:30]} Rfe8 {[%emt 0:00:30]} 29. Rf2 {[%emt 0:00:30]} Rxe2 {[%emt 0:00:30]} 0-1

[Event "2nd Serbian League-Vojvodina 2023"]
[Site "Novi Sad"]
[Date "2023.11.04"]
[Round "3.19"]
[White "Mezentsev, Ivan"]
[Black "Balla, Tamas-Kristof"]
[Result "1/2-1/2"]
[ECO "E62"]
[WhiteElo "2360"]
[BlackElo "2308"]
[Annotator "RC"]
[PlyCount "63"]
[EventDate "2023.10.22"]
[EventType "team-tourn"]
[EventCountry "SRB"]
[SourceTitle "playchess.com"]
[Source "ChessBase"]
[SourceQuality "1"]
[TimeControl "40/5400+30:1800+30"]

1. d4 {[%emt 0:01:33]} Nf6 {[%emt 0:00:50]} 2. c4 {[%emt 0:00:24]} g6 {[%emt 0:00:10]} 3. Nc3 {[%emt 0:00:32]} Bg7 {[%emt 0:00:16]} 4. Nf3 {[%emt 0:01:58]} O-O {[%emt 0:00:57]} 5. g3 {[%emt 0:00:21]} d6 {[%emt 0:00:15]} 6. Bg2 {[%emt 0:00:17]} Bf5 {[%emt 0:04:46]} 7. Nh4 {[%emt 0:05:51]} Bc8 {[%emt 0:00:14]} 8. O-O {[%emt 0:00:08]} c6 {[%emt 0:01:35]} 9. e4 {[%emt 0:03:21]} e5 {[%emt 0:01:10]} 10. Nf3 {[%emt 0:01:05]} Bg4 {[%emt 0:03:23]} 11. dxe5 {[%emt 0:10:35]} Bxf3 {[%emt 0:01:50]} 12. Bxf3 {[%emt 0:03:11]} dxe5 {[%emt 0:00:17]} 13. Qb3 {[%emt 0:02:45]} Qc7 {[%emt 0:06:54]} 14. Be3 {[%emt 0:03:15]} Nbd7 {[%emt 0:00:46]} 15. c5 {[%emt 0:00:58]} Rfd8 {[%emt 0:05:11]} 16. Be2 {[%emt 0:04:59]} Bf8 {[%emt 0:05:54]} 17. Qc4 {[%emt 0:01:50]} Nxc5 {[%emt 0:02:02]} 18. a4 {[%emt 0:16:34]} Ne6 {[%emt 0:03:30]} 19. Rad1 {[%emt 0:00:21]} Qa5 {[%emt 0:01:36]} 20. Kg2 {[%emt 0:02:19]} Bc5 {[%emt 0:06:43]} 21. Bc1 {[%emt 0:05:45]} Qb4 {[%emt 0:09:23]} 22. Qa2 {[%emt 0:07:11]} Rd4 {[%emt 0:16:53]} 23. Rxd4 {[%emt 0:10:54]} exd4 {[%emt 0:07:46]} 24. e5 {[%emt 0:08:20]} dxc3 {[%emt 0:01:18]} 25. exf6 {[%emt 0:00:01]} cxb2 {[%emt 0:00:18]} 26. Bxb2 {[%emt 0:01:17]} Qe4+ {[%emt 0:01:42]} 27. Bf3 {[%emt 0:00:05]} Qc2 {[%emt 0:00:05]} 28. Bd1 {[%emt 0:01:43]} Qe4+ {[%emt 0:04:40]} 29. Bf3 {[%emt 0:00:47]} Qf5 {[%emt 0:01:26]} 30. Qb3 {[%emt 0:05:05]} Ng5 {[%emt 0:02:22]} 31. Rd1 {[%emt 0:00:39]} h5 {[%emt 0:02:48]} 32. Qd3 {[%emt 0:01:19]} 1/2-1/2

[Event "2nd Serbian League-Vojvodina 2023"]
[Site "Novi Sad"]
[Date "2023.11.04"]
[Round "3.20"]
[White "Kopasz, Robert"]
[Black "Mushini Ajay"]
[Result "0-1"]
[ECO "B51"]
[WhiteElo "2241"]
[BlackElo "2301"]
[Annotator "RC"]
[PlyCount "62"]
[EventDate "2023.10.22"]
[EventType "team-tourn"]
[EventCountry "SRB"]
[SourceTitle "playchess.com"]
[Source "ChessBase"]
[SourceQuality "1"]
[TimeControl "40/5400+30:1800+30"]

1. e4 {[%emt 1:31:00]} c5 {[%emt 1:31:00]} 2. Nf3 {[%emt 0:00:30]} d6 {[%emt 0:00:30]} 3. Bb5+ {[%emt 0:00:30]} Nd7 {[%emt 0:00:30]} 4. c4 {[%emt 0:00:30]} e5 {[%emt 0:00:30]} 5. Nc3 {[%emt 0:00:30]} g6 {[%emt 0:00:30]} 6. d3 {[%emt 0:00:30]} Bg7 {[%emt 0:00:30]} 7. h4 {[%emt 0:00:30]} h6 {[%emt 0:00:30]} 8. h5 {[%emt 0:00:30]} g5 {[%emt 0:00:30]} 9. Nh2 {[%emt 0:00:30]} a6 {[%emt 0:00:30]} 10. Ba4 {[%emt 0:00:30]} Ne7 {[%emt 0:00:30]} 11. g4 {[%emt 0:00:30]} Nc6 {[%emt 0:00:30]} 12. Be3 {[%emt 0:00:30]} Nf8 {[%emt 0:00:30]} 13. Nf1 {[%emt 0:00:30]} Ne6 {[%emt 0:00:30]} 14. Ng3 {[%emt 0:00:30]} Nf4 {[%emt 0:00:30]} 15. O-O {[%emt 0:00:30]} O-O {[%emt 0:00:30]} 16. a3 {[%emt 0:00:30]} Nd4 {[%emt 0:00:30]} 17. f3 {[%emt 0:00:30]} Be6 {[%emt 0:00:30]} 18. Nd5 {[%emt 0:00:30]} b5 {[%emt 0:00:30]} 19. Bc2 {[%emt 0:00:30]} a5 {[%emt 0:00:30]} 20. Bxd4 {[%emt 0:00:30]} exd4 {[%emt 0:00:30]} 21. b3 {[%emt 0:00:30]} bxc4 {[%emt 0:00:30]} 22. bxc4 {[%emt 0:00:30]} Bxd5 {[%emt 0:00:30]} 23. cxd5 {[%emt 0:00:30]} c4 {[%emt 0:00:30]} 24. dxc4 {[%emt 0:00:30]} d3 {[%emt 0:00:30]} 25. Ba4 {[%emt 0:00:30]} Qb6+ {[%emt 0:00:30]} 26. Kh1 Qb2 27. Rg1 Nh3 {[%emt 0:01:00]} 28. Qc1 {[%emt 0:01:30]} Rab8 {[%emt 0:00:30]} 29. Bb5 {[%emt 0:00:30]} Nxg1 {[%emt 0:00:30]} 30. Qxb2 {[%emt 0:00:30]} Bxb2 31. Rxg1 {[%emt 0:00:30]} Bxa3 {[%emt 0:01:00]} 0-1

[Event "2nd Serbian League-Vojvodina 2023"]
[Site "Novi Sad"]
[Date "2023.11.04"]
[Round "3.21"]
[White "Jotic, Vladimir"]
[Black "Pletl, Akos"]
[Result "0-1"]
[ECO "A07"]
[WhiteElo "2280"]
[BlackElo "2155"]
[Annotator "RC"]
[PlyCount "72"]
[EventDate "2023.10.22"]
[EventType "team-tourn"]
[EventCountry "SRB"]
[SourceTitle "playchess.com"]
[Source "ChessBase"]
[SourceQuality "1"]
[TimeControl "40/5400+30:1800+30"]

1. Nf3 {[%emt 0:05:09]} d5 {[%emt 0:00:09]} 2. g3 {[%emt 0:00:08]} Nf6 {[%emt 0:00:28]} 3. Bg2 {[%emt 0:00:05]} Nc6 {[%emt 0:00:34]} 4. O-O {[%emt 0:02:31]} e5 {[%emt 0:00:27]} 5. d3 {[%emt 0:00:09]} Be7 {[%emt 0:02:10]} 6. c3 {[%emt 0:07:27]} O-O {[%emt 0:02:23]} 7. Nbd2 {[%emt 1:18:31]} Re8 {[%emt 0:06:46]} 8. e4 {[%emt 0:00:00]} dxe4 {[%emt 0:12:42]} 9. dxe4 {[%emt 0:00:00]} a5 {[%emt 0:02:02]} 10. a4 {[%emt 0:00:00]} b6 {[%emt 0:01:49]} 11. Qb3 {[%emt 0:02:00]} Bc5 {[%emt 0:12:07]} 12. Nc4 {[%emt 0:00:00]} Qe7 {[%emt 0:06:56]} 13. Nh4 {[%emt 0:00:00]} Ba6 {[%emt 0:02:47]} 14. Re1 {[%emt 0:01:30]} Qe6 {[%emt 0:46:10]} 15. Bf1 {[%emt 0:00:30]} Ng4 {[%emt 0:00:00]} 16. Be3 {[%emt 0:00:30]} Bxe3 {[%emt 0:00:00]} 17. fxe3 {[%emt 0:00:00]} Nf6 {[%emt 0:00:00]} 18. Rad1 {[%emt 0:01:00]} Nxe4 {[%emt 0:02:00]} 19. Nd2 {[%emt 0:00:00]} Qxb3 {[%emt 0:00:00]} 20. Nxb3 {[%emt 0:00:00]} Bxf1 {[%emt 0:00:00]} 21. Kxf1 {[%emt 0:01:30]} Rad8 {[%emt 0:00:00]} 22. Ke2 {[%emt 0:00:30]} f6 {[%emt 0:02:00]} 23. Nf3 {[%emt 0:00:30]} Kf7 {[%emt 0:00:30]} 24. Nfd2 {[%emt 0:00:00]} Nxd2 {[%emt 0:00:00]} 25. Nxd2 {[%emt 0:01:00]} Rd7 {[%emt 0:00:00]} 26. Nc4 {[%emt 0:00:30]} Rxd1 {[%emt 0:00:00]} 27. Rxd1 {[%emt 0:00:00]} Rd8 28. Rf1 {[%emt 0:01:00]} Ke6 {[%emt 0:00:00]} 29. e4 {[%emt 0:00:30]} g6 {[%emt 0:00:00]} 30. Ne3 {[%emt 0:00:00]} Ne7 {[%emt 0:03:30]} 31. g4 {[%emt 0:01:00]} Rh8 {[%emt 0:00:00]} 32. Rf3 {[%emt 0:00:00]} h5 {[%emt 0:01:00]} 33. Rh3 {[%emt 0:01:00]} h4 {[%emt 0:00:30]} 34. Rf3 {[%emt 0:00:30]} Rd8 {[%emt 0:00:30]} 35. Rf1 {[%emt 0:00:30]} g5 {[%emt 0:00:30]} 36. b3 {[%emt 0:00:30]} Ng6 0-1